[Event "44th Chess Olympiad Women 2022"]
[Site "Chennai"]
[Date "2022.07.30"]
[Round "2.37"]
[White "Newrkla, Katharina"]
[Black "Ortez, Andrea"]
[Result "1/2-1/2"]
[ECO "B36"]
[WhiteElo "2265"]
[BlackElo "1908"]
[Annotator "TA"]
[PlyCount "132"]
[EventDate "2022.07.29"]
[EventType "team-tourn"]
[EventCountry "IND"]
[SourceTitle "playchess.com"]
[Source "ChessBase"]
[SourceQuality "1"]
[WhiteTeam "Austria"]
[BlackTeam "El Salvador"]
[WhiteTeamCountry "AUT"]
[BlackTeamCountry "ESA"]
[TimeControl "40/5400+30:1800+30"]

{[%evp 18,132,47,39,54,49,45,56,45,52,58,46,104,91,108,71,191,174,256,260,281,277,349,334,322,336,331,318,343,335,333,339,335,335,325,330,350,326,341,337,528,545,855,530,1438,1422,1408,1407,1227,1260,1296,1169,898,613,605,587,504,211,160,185,415,429,540,506,912,912,912,912,876,839,558,551,689,596,602,577,600,586,897,892,889,889,867,859,884,808,734,312,670,560,1325,0,0,0,0,0,0,0,0,0,0,0,0,0,0,0,0,0,0,187,0,0,0,0,0,0,0]} 1. e4 {[%emt 0:00:03]} c5 {[%emt 0:00:11]} 2. Nf3 {[%emt 0:00:05]} Nc6 {[%emt 0:00:18]} 3. d4 {[%emt 0:00:04]} cxd4 {[%emt 0:00:14]} 4. Nxd4 {[%emt 0:00:05]} g6 {[%emt 0:00:15]} 5. c4 {[%emt 0:00:14]} Nf6 {[%emt 0:00:32]} 6. Nc3 {[%emt 0:00:05]} Nxd4 {[%emt 0:00:29]} 7. Qxd4 {[%emt 0:00:06]} d6 {[%emt 0:00:36]} 8. f3 {[%emt 0:00:25]} Bg7 {[%emt 0:00:37]} 9. Be3 {[%emt 0:00:09]} O-O {[%emt 0:00:51]} 10. Qd2 {[%emt 0:00:10]} a5 {[%emt 0:01:03] B36: Sicilian: Maroczy Bind: Gurgenidze System.} 11. b3 {[%emt 0:00:18]} a4 {[%emt 0:08:42] 11...a4 scores better than 11...Bd7.} 12. b4 {[%emt 0:00:13]} Be6 {[%emt 0:01:37] White is slightly better.} 13. Rc1 {[%emt 0:02:47]} Nd7 {[%emt 0:03:31]} 14. Be2 {[%emt 0:13:50]} f5 {[%emt 0:15:41]} ({Black should try} 14... Rc8 $14) 15. exf5 $16 {[%emt 0:07:19] [#]} Rxf5 $146 {[%emt 0:01:53]} ({Predecessor:} 15... gxf5 16. O-O Bf7 17. Rfd1 Nb6 18. Nd5 Nxd5 19. cxd5 Qd7 20. Bd4 Bxd4+ 21. Qxd4 Rfc8 {½-½ (36) Golubov,S (2382)-Torma,R (2417) Budapest 2014}) 16. Nb5 {[%emt 0:07:22]} Ne5 {[%emt 0:04:52]} (16... Rf8 $16) 17. Nd4 $1 $18 {[%emt 0:17:31][%csl LRe6,LRf5]} Qd7 {[%emt 0:17:23]} (17... Rf6 {is a better defense.} 18. Nxe6 Rxe6) 18. f4 {[%emt 0:07:17]} Nc6 {[%emt 0:08:15]} 19. Nxf5 {[%emt 0:00:51]} gxf5 {[%emt 0:02:56]} 20. b5 {[%emt 0:02:42]} Nd8 {[%emt 0:02:50]} 21. Bd4 {[%emt 0:04:38]} Bxd4 {[%emt 0:02:35]} 22. Qxd4 {[%emt 0:00:07]} Bf7 {[%emt 0:00:26]} 23. Rc3 {[%emt 0:02:06]} Ne6 {[%emt 0:04:26]} 24. Rg3+ {[%emt 0:00:22]} Bg6 {[%emt 0:00:07]} 25. Qd5 {[%emt 0:02:21]} Kf8 {[%emt 0:02:06]} 26. O-O {[%emt 0:01:17]} Nc5 {[%emt 0:02:49]} 27. Qd4 {[%emt 0:04:20]} Rc8 {[%emt 0:03:02]} 28. Bf3 {[%emt 0:04:05]} Qc7 {[%emt 0:05:18]} (28... Qe6 $142 29. h4 Qf6 30. Qxf6+ exf6) 29. Re1 {[%emt 0:03:55]} Kf7 {[%emt 0:03:59]} 30. h4 {[%emt 0:03:45]} Ke8 {[%emt 0:05:44]} 31. h5 {[%emt 0:01:35]} Bf7 {[%emt 0:00:11]} 32. Qh8+ {[%emt 0:01:16]} Kd7 {[%emt 0:00:04]} 33. Qxh7 {[%emt 0:00:52]} Be6 {[%emt 0:00:19]} 34. Rg7 {[%emt 0:01:56]} Re8 {[%emt 0:00:08]} 35. Bd5 {[%emt 0:02:54]} Qa5 {[%emt 0:01:05]} 36. Re2 {[%emt 0:04:22]} Qc3 {[%emt 0:00:20]} 37. Qh6 {[%emt 0:05:31]} (37. Kh2 $142 Qd4 38. Bxe6+ Nxe6 {[#]} 39. Qxf5 $1 Qxf4+ 40. Qxf4 Nxf4 41. Rf2) 37... Bxd5 {[%emt 0:02:07]} 38. cxd5 {[%emt 0:00:08] Really sharp!} Qd4+ $2 {[%emt 0:00:30]} (38... Qd3 {was called for.} 39. Re1 Qd2) 39. Kh2 {[%emt 0:00:19] [#] Strongly threatening Qg5.} Qxd5 {[%emt 0:00:19]} 40. Qh7 {[%emt 0:02:26][%cal Rg7e7]} Ne6 {[%emt 0:01:13]} (40... Ne4 $142 41. Rf7 Qxb5) 41. Rg8 {[%emt 0:11:01]} Rxg8 {[%emt 0:07:55]} 42. Qxg8 {[%emt 0:00:07][%mdl 4096] Endgame KQR-KQN} Qc4 {[%emt 0:02:34] Prevents Rc2.} 43. Rf2 {[%emt 0:06:15]} Qd4 {[%emt 0:02:53]} 44. Qg3 {[%emt 0:02:49]} Nc5 {[%emt 0:01:01]} 45. Re2 {[%emt 0:05:10]} Ne4 {[%emt 0:03:35]} 46. Qe3 {[%emt 0:01:44]} Qf6 {[%emt 0:02:24]} 47. Qh3 {[%emt 0:00:20] Prevents Qh4.} e6 {[%emt 0:01:01]} 48. h6 {[%emt 0:00:45]} Qh8 {[%emt 0:01:01]} 49. Qh5 {[%emt 0:03:21][%cal Oe2e4] Rxe4! is the strong threat.} Qh7 {[%emt 0:00:25]} 50. Qh4 {[%emt 0:00:49]} Qh8 {[%emt 0:01:18]} 51. Rc2 {[%emt 0:01:58]} Nf6 {[%emt 0:00:44]} 52. h7 {[%emt 0:01:10]} (52. Kh3 $142) 52... b6 $2 {[%emt 0:07:57]} (52... Qxh7 53. Qxh7+ Nxh7) 53. Rc6 {[%emt 0:01:04]} Ng4+ {[%emt 0:03:17]} 54. Kh3 $2 {[%emt 0:00:13]} ({Only move:} 54. Kg3 $18 {Threatening mate with Qh5.} e5 55. Qh5 exf4+ 56. Kh4 Qf6+ 57. Qg5) 54... Qa1 $1 $11 {[%emt 0:00:23]} 55. Rc7+ {[%emt 0:00:51]} Kxc7 {[%emt 0:00:04]} 56. Qe7+ {[%emt 0:00:03]} Kb8 $1 {[%emt 0:01:04]} 57. Qxd6+ {[%emt 0:00:23]} Kb7 {[%emt 0:00:41]} 58. Qe7+ {[%emt 0:00:19]} Kb8 {[%emt 0:00:21]} 59. Qe8+ {[%emt 0:00:47]} Ka7 {[%emt 0:00:19] Hoping for ...Qh1+.} 60. Qd7+ {[%emt 0:00:28]} Kb8 {[%emt 0:00:06]} 61. Qd6+ {[%emt 0:00:33]} Ka7 {[%emt 0:00:24] ( -> ...Nf2+)} 62. Qc7+ {[%emt 0:00:09]} Ka8 {[%emt 0:00:04]} 63. Qc8+ {[%emt 0:01:06]} Ka7 {[%emt 0:00:02] Threatens to win with ...Qh1+.} 64. Qc7+ {[%emt 0:00:40] The position is equal.} Ka8 {[%emt 0:00:02]} 65. Qd8+ {[%emt 0:00:26]} Kb7 {[%emt 0:00:10] aiming for ...Qh1+.} 66. Qd7+ {[%emt 0:00:30]} Kb8 {[%emt 0:00:07] Black escapes into a draw.  Weighted Error Value: White=0.47/Black=0.48} 1/2-1/2

[Event "44th Chess Olympiad Women 2022"]
[Site "Chennai"]
[Date "2022.07.30"]
[Round "2.37"]
[White "Mayrhuber, Nikola"]
[Black "Zavala Galindo, Alejandra Beatriz"]
[Result "1-0"]
[ECO "E76"]
[WhiteElo "2141"]
[BlackElo "1748"]
[Annotator "TA"]
[PlyCount "55"]
[EventDate "2022.07.29"]
[EventType "team-tourn"]
[EventCountry "IND"]
[SourceTitle "playchess.com"]
[Source "ChessBase"]
[SourceQuality "1"]
[WhiteTeam "Austria"]
[BlackTeam "El Salvador"]
[WhiteTeamCountry "AUT"]
[BlackTeamCountry "ESA"]
[TimeControl "40/5400+30:1800+30"]

{[%evp 19,55,18,13,0,27,31,295,297,535,532,542,531,613,595,592,569,827,635,650,617,709,704,797,792,1033,994,993,844,920,890,835,820,6187,5903,29992,29993,29993,29994]} 1. d4 {[%emt 0:00:04]} Nf6 {[%emt 0:00:19]} 2. c4 {[%emt 0:00:05]} c5 {[%emt 0:00:07]} 3. d5 {[%emt 0:00:05]} d6 {[%emt 0:01:24]} 4. Nc3 {[%emt 0:00:07]} e6 {[%emt 0:00:18]} 5. e4 {[%emt 0:02:52]} g6 {[%emt 0:02:48]} 6. dxe6 {[%emt 0:07:41]} fxe6 {[%emt 0:05:12]} 7. f4 {[%emt 0:01:21]} Nc6 {[%emt 0:05:06]} 8. Nf3 {[%emt 0:00:13]} a6 {[%emt 0:03:55]} 9. Bd3 {[%emt 0:03:27]} Bg7 {[%emt 0:04:11]} 10. O-O {[%emt 0:00:55]} O-O {[%emt 0:06:12] [#]} 11. Ng5 $146 {[%emt 0:00:52] E76: King's Indian: Four Pawns Attack: Lines specific to 6 Nf3 move-order.} ({Predecessor:} 11. a3 Rb8 12. Qe1 Nh5 13. Ne2 e5 14. fxe5 Nxe5 15. Nxe5 Bxe5 16. Rb1 Rxf1+ 17. Qxf1 Bg4 18. h3 Qh4 {0-1 (27) Atanasova,E (1743)-Nestorova,L (2051) Plovdiv 2011}) 11... Nd4 {[%emt 0:09:48]} 12. e5 {[%emt 0:05:52]} Ne8 {[%emt 0:06:08][%mdl 8192] [#]} (12... dxe5 $1 $14 13. fxe5 Nd7) 13. Nxh7 $1 $18 {[%emt 0:08:43] White has a decisive advantage.} Nf5 $2 {[%emt 0:14:37]} (13... Rf5) 14. Nxf8 {[%emt 0:02:14]} Kxf8 {[%emt 0:00:30]} 15. g4 {[%emt 0:09:08]} Ne7 {[%emt 0:12:59]} 16. Be3 {[%emt 0:09:03][%cal Bc1e3,Be3f2,Bf2h4][%mdl 32]} b6 {[%emt 0:04:11]} 17. Qc2 {[%emt 0:01:21]} d5 {[%emt 0:03:01]} 18. Bf2 {[%emt 0:02:51]} Bb7 {[%emt 0:02:47]} 19. Rad1 {[%emt 0:06:20]} Qc7 {[%emt 0:04:20]} 20. Bh4 {[%emt 0:08:34]} Kg8 {[%emt 0:04:25]} 21. cxd5 {[%emt 0:03:50]} Nxd5 {[%emt 0:01:21]} 22. Nxd5 {[%emt 0:00:29]} Bxd5 {[%emt 0:00:12]} 23. Be4 {[%emt 0:02:18][%cal Bd3e4,Be4g6,Bg6f7][%mdl 32]} Qc6 {[%emt 0:01:30] [#]} 24. Rxd5 $1 {[%emt 0:05:13]} exd5 {[%emt 0:00:29]} 25. Bxg6 {[%emt 0:00:05] A strong pair of Bishops.} Nc7 {[%emt 0:00:57]} 26. Qf5 {[%emt 0:01:14] White wants to mate with Bf7+.} d4 {[%emt 0:03:17]} 27. Bf7+ {[%emt 0:01:47]} Kh8 {[%emt 0:00:20]} 28. Bf6 {[%emt 0:00:44] White took control after the opening.  Weighted Error Value: White=0.37/Black=1.01} 1-0

[Event "44th Chess Olympiad Women 2022"]
[Site "Chennai"]
[Date "2022.07.30"]
[Round "2.37"]
[White "Garcia, Angie"]
[Black "Trippold, Denise"]
[Result "0-1"]
[ECO "B48"]
[WhiteElo "1894"]
[BlackElo "2151"]
[Annotator "TA"]
[PlyCount "94"]
[EventDate "2022.07.29"]
[EventType "team-tourn"]
[EventCountry "IND"]
[SourceTitle "playchess.com"]
[Source "ChessBase"]
[SourceQuality "1"]
[WhiteTeam "El Salvador"]
[BlackTeam "Austria"]
[WhiteTeamCountry "ESA"]
[BlackTeamCountry "AUT"]
[TimeControl "40/5400+30:1800+30"]

{[%evp 14,93,36,25,29,32,30,18,36,17,16,22,25,-77,-85,-75,-22,-38,0,0,0,-32,0,0,12,26,66,72,79,70,98,97,110,12,30,22,84,76,76,84,89,75,76,77,136,108,158,166,168,158,254,151,151,159,126,124,114,51,54,29,29,25,32,31,32,32,32,32,32,32,32,32,46,46,46,8,17,-29997,-29998,-29998,-29999,-29999]} 1. e4 {[%emt 0:00:07]} c5 {[%emt 0:00:12]} 2. Nf3 {[%emt 0:00:12]} e6 {[%emt 0:00:11]} 3. d4 {[%emt 0:00:11]} cxd4 {[%emt 0:00:12]} 4. Nxd4 {[%emt 0:00:13]} Nc6 {[%emt 0:00:14]} 5. Nc3 {[%emt 0:00:19]} Qc7 {[%emt 0:00:34]} 6. Be3 {[%emt 0:01:21]} a6 {[%emt 0:00:07]} 7. Qd2 {[%emt 0:01:23] 7.g4 gains popularity.} Nf6 {[%emt 0:00:43]} 8. O-O-O {[%emt 0:00:49]} Be7 {[%emt 0:00:47] B48: Sicilian: Taimanov: 5 Nc3 Qc7 6 Be3 a6 without Be2.} 9. f3 {[%emt 0:01:26]} b5 {[%emt 0:01:59]} 10. Kb1 {[%emt 0:04:08] has lost popularity (10.g4).} Bb7 {[%emt 0:01:34] The position is equal.} 11. g4 {[%emt 0:05:50]} (11. Bf4 {with more complications.} e5 12. Nf5 exf4 13. Nd5) 11... Nxd4 {[%emt 0:05:32]} 12. Bxd4 {[%emt 0:03:50]} O-O {[%emt 0:23:34]} 13. Bxf6 {[%emt 0:08:38]} (13. Rg1 $11 {keeps the balance.}) 13... Bxf6 $17 {[%emt 0:00:08]} 14. Qxd7 {[%emt 0:00:33] [#]} Qc5 $146 {[%emt 0:13:49]} ({Predecessor:} 14... Qb6 15. Qd2 b4 16. Ne2 Rfd8 17. Qe1 Rxd1+ 18. Qxd1 Rd8 19. Qc1 Qf2 20. Nf4 Qxf3 {0-1 (28) Borges Feria,Y (2416)-Quesada Perez,Y (2513) Monterrey 2015}) 15. Qd6 $11 {[%emt 0:09:25]} ({Wrong is} 15. Qxb7 $2 Bxc3 16. bxc3 Ra7 $19) 15... Qf2 {[%emt 0:08:57]} (15... Qa7 $5 {[%cal Ra8d8]} 16. Be2 Rac8 $15) 16. Qg3 {[%emt 0:04:59]} Qc5 {[%emt 0:05:06]} 17. Qd6 {[%emt 0:02:27]} Qf2 {[%emt 0:08:28]} (17... Qa7 $5 {[%cal Ra8d8]} 18. Be2 Rac8 $15) 18. Qg3 {[%emt 0:06:15]} Qxg3 {[%emt 0:01:38]} 19. hxg3 {[%emt 0:00:07]} Bxc3 {[%emt 0:06:10]} 20. bxc3 {[%emt 0:00:10]} Rac8 {[%emt 0:02:05]} 21. Kb2 {[%emt 0:02:10]} f5 {[%emt 0:00:13]} 22. gxf5 {[%emt 0:01:13]} exf5 {[%emt 0:00:08]} 23. Bd3 {[%emt 0:01:28]} (23. Bh3 $16) 23... Rc5 {[%emt 0:03:17]} 24. Rh5 {[%emt 0:04:39] Black must now prevent g4.} Rfc8 {[%emt 0:06:51]} (24... g6 $11 25. Rg5 Kg7 26. exf5 Bxf3 27. f6+ Rxf6 28. Rxc5 Bxd1) 25. Rxf5 $16 {[%emt 0:02:14]} Rxf5 {[%emt 0:00:06][%mdl 64] Remove Defender} 26. exf5 {[%emt 0:00:05]} Bxf3 {[%emt 0:00:09][%mdl 4096] Endgame KRB-KRB} 27. Re1 {[%emt 0:00:26]} Kf7 {[%emt 0:02:16]} 28. Re6 {[%emt 0:02:14]} Bb7 {[%emt 0:00:48]} (28... Rc6 $142) 29. g4 {[%emt 0:02:47]} Rc5 {[%emt 0:03:07] [#]} ({Black should try} 29... Bf3) 30. Rb6 $1 {[%emt 0:04:31]} Bc8 {[%emt 0:00:07]} 31. Kb3 {[%emt 0:02:00]} h5 {[%emt 0:04:13] [#]} (31... Ke7 $16 32. Kb4 (32. c4 bxc4+ 33. Bxc4 h5 $16) 32... Rc7) 32. gxh5 {[%emt 0:07:19]} (32. Kb4 $1 $18 {[%cal Rb4c5]} Re5 33. Rb8 (33. gxh5 Bxf5 34. Rxa6 Bxd3 $16)) 32... Bxf5 {[%emt 0:00:12]} 33. h6 {[%emt 0:00:32]} (33. Rxa6 Bxd3 34. cxd3 Rxh5 $16) 33... gxh6 {[%emt 0:01:28]} 34. Rxh6 {[%emt 0:00:11] Hoping for Kb4.} ({Much less strong is} 34. Rxa6 Bxd3 35. cxd3 h5) 34... Be6+ {[%emt 0:01:44]} 35. Kb2 {[%emt 0:01:02]} (35. Kb4 $16 Rg5 36. Rh7+ Ke8 37. a3) 35... Ke7 $14 {[%emt 0:00:36]} 36. Rh7+ {[%emt 0:01:51]} Kd6 {[%emt 0:00:01]} 37. Ra7 {[%emt 0:02:03]} Bc8 {[%emt 0:00:07]} 38. Kb3 {[%emt 0:02:23]} Kc6 {[%emt 0:01:10]} 39. c4 {[%emt 0:04:02]} Kb6 {[%emt 0:00:37]} 40. Re7 {[%emt 0:00:47]} bxc4+ {[%emt 0:00:39]} 41. Bxc4 {[%emt 0:30:14]} Bf5 {[%emt 0:03:51][%cal Of5c2]} 42. Re2 {[%emt 0:00:00]} Rc6 {[%emt 0:10:33]} 43. Bd5 {[%emt 0:00:00]} Rh6 {[%emt 0:00:26]} 44. c4 {[%emt 0:00:00]} Rh3+ {[%emt 0:01:03]} 45. Kb4 $2 {[%emt 0:00:00][%mdl 8192]} (45. Kb2 $11) 45... a5+ {[%emt 0:00:32] Black mates.} 46. Ka4 {[%emt 0:00:00]} Bd7+ {[%emt 0:00:04]} 47. Bc6 {[%emt 0:00:00]} Bxc6# {[%emt 0:01:40] What a bad dream for White.  Weighted Error Value: White=0.37/Black=0.15 (very precise)} 0-1

[Event "44th Chess Olympiad Women 2022"]
[Site "Chennai"]
[Date "2022.07.30"]
[Round "2.37"]
[White "Herrera, Marjorie"]
[Black "Hapala, Elisabeth"]
[Result "0-1"]
[ECO "B23"]
[WhiteElo "1760"]
[BlackElo "2113"]
[Annotator "TA"]
[PlyCount "86"]
[EventDate "2022.07.29"]
[EventType "team-tourn"]
[EventCountry "IND"]
[SourceTitle "playchess.com"]
[Source "ChessBase"]
[SourceQuality "1"]
[WhiteTeam "El Salvador"]
[BlackTeam "Austria"]
[WhiteTeamCountry "ESA"]
[BlackTeamCountry "AUT"]
[TimeControl "40/5400+30:1800+30"]

{[%evp 9,86,-19,-8,0,-22,-62,-40,-39,-12,-11,0,-114,-106,-122,-105,-110,-105,-122,-127,-149,-155,-185,-89,-99,-70,-152,-150,-273,-184,-230,-224,-343,-321,-342,-331,-321,-324,-447,-343,-344,-343,-331,-343,-336,-297,-290,-273,-339,-338,-439,-441,-433,-427,-432,-444,-547,-519,-1135,-1181,-1093,-989,-1026,-1007,-972,-907,-932,-784,-1777,-1654,-2318,-2021,-2574,-2358,-2730,-1870,-2279,-1910,-5314,-2682]} 1. e4 {[%emt 0:00:09]} c5 {[%emt 0:00:04]} 2. Nc3 {[%emt 0:00:43]} e6 {[%emt 0:00:11]} 3. f4 {[%emt 0:03:34]} d5 {[%emt 0:00:45]} 4. Bb5+ {[%emt 0:01:12]} Bd7 {[%emt 0:00:51]} 5. Bxd7+ {[%emt 0:01:49]} Qxd7 {[%emt 0:00:09]} 6. exd5 {[%emt 0:01:18] B23: Closed Sicilian: Lines without g3.} exd5 {[%emt 0:00:05]} 7. Qe2+ {[%emt 0:01:15]} Be7 {[%emt 0:07:30]} 8. Nf3 {[%emt 0:02:50] Black is slightly better.} Nc6 {[%emt 0:09:40]} 9. Ne5 {[%emt 0:10:29]} Nxe5 {[%emt 0:19:58] [#]} 10. Qxe5 $146 {[%emt 0:08:21]} (10. fxe5 $11 Nh6 11. O-O) ({Predecessor:} 10. fxe5 O-O-O 11. O-O Nh6 12. d4 Nf5 13. dxc5 Bxc5+ 14. Kh1 Rhe8 15. Qd3 g6 16. Bg5 {0-1 (40) Hund,B (2129)-Johansson,G (2217) Stockholm 2016}) 10... Nf6 {[%emt 0:00:35]} 11. O-O {[%emt 0:03:13]} O-O {[%emt 0:03:39]} 12. d3 {[%emt 0:03:30]} Rfe8 {[%emt 0:03:35] ...Bf8 is the strong threat.} 13. Qe1 {[%emt 0:05:39]} c4 {[%emt 0:18:49] Strongly threatening ...Bc5+.} 14. Kh1 {[%emt 0:13:12]} Bb4 {[%emt 0:04:59]} 15. Qg3 {[%emt 0:16:41]} Bxc3 {[%emt 0:15:15]} (15... d4 $19 {and Black stays clearly on top.} 16. Nd1 Rac8) 16. bxc3 $17 {[%emt 0:00:42]} Qf5 {[%emt 0:00:41] Black is more active.} 17. Ba3 {[%emt 0:11:12]} (17. Qf3 $15) 17... Re2 {[%emt 0:00:34]} 18. Rfe1 {[%emt 0:04:22]} (18. Rac1 $17) 18... Rae8 {[%emt 0:00:34]} 19. Rxe2 {[%emt 0:03:54]} (19. Bd6 $142) 19... Rxe2 $19 {[%emt 0:00:01]} 20. Re1 {[%emt 0:00:15]} (20. Rc1 {was necessary.}) 20... cxd3 {[%emt 0:00:56]} ({Not} 20... Rxc2 $2 21. dxc4 dxc4 22. Qf3) ({But not} 20... Qxf4 $2 21. Rc1 Qxg3 22. hxg3) 21. cxd3 {[%emt 0:00:35] [#]} Qxd3 {[%emt 0:04:40][%mdl 512]} 22. Rxe2 {[%emt 0:05:25]} Qxe2 {[%emt 0:00:02][%cal Re2f1][%mdl 4096] Endgame KQB-KQN} 23. h3 {[%emt 0:00:10]} Nh5 {[%emt 0:03:26]} 24. Qg5 {[%emt 0:01:13] [#] White threatens Qd8+ and mate.} Qf1+ $1 {[%emt 0:01:47]} 25. Kh2 {[%emt 0:00:17][%cal Rg5d8]} Qxf4+ {[%emt 0:00:13]} 26. Qxf4 {[%emt 0:00:20]} Nxf4 {[%emt 0:00:01] KB-KN} 27. Bc1 {[%emt 0:00:48]} Ne6 {[%emt 0:01:56]} 28. Be3 {[%emt 0:00:11]} a6 {[%emt 0:00:21]} 29. g4 {[%emt 0:00:45]} f6 {[%emt 0:00:28] Black is clearly winning.} 30. Kg3 {[%emt 0:00:36]} Kf7 {[%emt 0:00:32]} 31. h4 {[%emt 0:00:23]} g6 {[%emt 0:00:24][%cal Bg7g6,Bg6h5][%mdl 32]} 32. Bb6 {[%emt 0:00:43]} h5 {[%emt 0:00:30]} 33. gxh5 {[%emt 0:00:36]} (33. Ba5 $142 Nc5 34. gxh5 gxh5 35. Kf2) 33... gxh5 {[%emt 0:00:01]} 34. Kf3 {[%emt 0:00:29]} Kg6 {[%emt 0:00:21]} 35. Kg3 {[%emt 0:00:28]} Kf5 {[%emt 0:00:06] Hoping for ...Ke4.} 36. Kf3 {[%emt 0:00:08]} Nf4 {[%emt 0:00:57]} 37. Bf2 {[%emt 0:00:48]} Nd3 {[%emt 0:01:00]} 38. Bb6 {[%emt 0:00:40]} Ne5+ {[%emt 0:00:29]} 39. Kg3 {[%emt 0:00:29]} Ke4 {[%emt 0:00:50]} 40. Bd4 {[%emt 0:00:21]} f5 {[%emt 0:01:30][%cal Bf6f5,Bf5f4][%mdl 32]} 41. Bb6 {[%emt 0:30:21]} f4+ {[%emt 0:04:58]} 42. Kg2 {[%emt 0:00:00]} Ng4 {[%emt 0:01:31]} 43. Bg1 {[%emt 0:00:00]} Ne3+ {[%emt 0:00:56] Weighted Error Value: White=0.65/Black=0.19 (very precise)} 0-1